bitfinex/quotes_SOLUSD_20240601
["timestamp","ask_amount","ask_price","bid_price","bid_amount"]
[1717225194900,2.2134,167.16,167.09,0.17]
[1717225195096,2.2133,167.17,167.1,15.4351]
[1717225200709,2.2132,167.18,167.11,60.17]
[1717225200908,2.2132,167.18,167.12,6.1942]
[1717225201128,2.213,167.19,167.13,21.7993]
[1717225201332,2.213,167.19,167.13,21.6293]
[1717225202927,2.2127,167.22,167.13,21.6293]
[1717225203120,23.88455109,167.26,167.13,21.6293]
[1717225203321,0.17,167.25,167.14,0.17]
[1717225203906,2.2128,167.21,167.14,0.17]
[1717225204626,2.2126,167.22,167.14,0.34]
[1717225204818,2.2128,167.21,167.14,0.34]
[1717225207523,2.2126,167.22,167.14,0.34]
[1717225209115,2.2125,167.24,167.15,60.0]
[1717225209318,4.4244,167.26,167.16,0.17]
[1717225209831,2.2126,167.23,167.16,0.17]
[1717225210026,2.2126,167.23,167.16,0.34]
[1717225212131,2.2126,167.22,167.16,0.34]
[1717225212631,2.58706157,167.25,167.13,21.6293]
[1717225212821,2.213,167.19,167.13,21.6293]
[1717225213227,4.4256,167.21,167.13,21.6293]
[1717225213419,2.2133,167.17,167.13,21.6293]
[1717225213834,4.4259,167.2,167.13,6.1942]
[1717225214026,4.4259,167.2,167.09,22.3768]
[1717225214224,7.01296157,167.2,167.09,22.3768]
[1717225214538,4.4259,167.2,167.09,22.3768]
[1717225215248,2.2135,167.16,167.09,22.3768]
[1717225218541,2.2129,167.2,167.11,60.0]
[1717225218719,2.2129,167.2,167.12,0.17]
[1717225219126,2.2128,167.21,167.12,0.17]
[1717225219424,2.2128,167.21,167.13,60.0]
[1717225219638,17.24735986,167.25,167.14,22.5468]
[1717225219831,2.2126,167.22,167.15,0.17]
[1717225220136,2.2128,167.21,167.15,0.17]
[1717225220342,2.2128,167.21,167.14,22.3768]
[1717225222219,2.2129,167.2,167.14,22.3768]
[1717225223351,2.2128,167.21,167.14,22.3768]
[1717225225747,8.8492,167.25,167.14,6.0239]
[1717225225938,2.2131,167.19,167.14,6.0239]
[1717225227850,2.2131,167.19,167.1,21.8683]
[1717225228050,2.2131,167.19,167.11,20.0]
[1717225230857,2.2131,167.19,167.1,21.8683]
[1717225231548,2.2129,167.2,167.1,21.8683]
[1717225232630,2.2129,167.2,167.11,0.51073481]
[1717225234141,2.2129,167.2,167.12,0.17]
[1717225234339,2.2129,167.2,167.12,0.85067368]
[1717225235149,2.2129,167.2,167.12,0.34]
[1717225236046,2.213,167.19,167.11,0.34]
[1717225236234,2.213,167.19,167.11,0.17]
[1717225238656,2.2129,167.2,167.11,0.17]
[1717225239063,2.2129,167.2,167.11,60.66464445]
[1717225242153,2.2128,167.21,167.11,60.66464445]
[1717225242664,2.2128,167.21,167.11,114.52464445]
[1717225242876,2.2126,167.23,167.13,60.0]
[1717225243048,2.2126,167.23,167.14,0.34]
[1717225246990,2.2126,167.23,167.14,20.34]
[1717225252165,2.2126,167.23,167.14,0.34]
[1717225252569,2.2126,167.23,167.14,20.34]
[1717225253168,2.2127,167.22,167.14,20.17]
[1717225253476,2.58706157,167.26,167.14,0.17]
[1717225253477,2.2128,167.21,167.14,0.17]
[1717225253684,2.2128,167.21,167.12,20.0]
[1717225254062,2.2126,167.22,167.12,20.0]
[1717225254972,2.2126,167.22,167.13,0.34]
[1717225255282,2.2126,167.22,167.13,114.2]
[1717225257078,2.2125,167.23,167.13,114.2]
[1717225259078,2.2126,167.22,167.13,114.2]
[1717225260389,2.2128,167.21,167.13,0.34]
[1717225260571,2.2128,167.21,167.12,20.0]
[1717225261491,4.4246,167.25,167.1,57.7683]
[1717225261492,4.425,167.24,167.1,57.7683]
[1717225261789,2.2129,167.2,167.11,20.0]
[1717225263777,2.2129,167.2,167.12,0.17]
[1717225264185,2.213,167.19,167.11,20.0]
[1717225265391,2.2129,167.2,167.11,20.0]
[1717225267472,2.2128,167.21,167.11,20.0]
[1717225270895,2.2128,167.21,167.12,0.34]
[1717225271491,2.2128,167.21,167.12,1.53590057]
[1717225271691,6.6376,167.27,167.13,60.0]
[1717225271893,2.2125,167.23,167.14,0.34]
[1717225272999,2.2125,167.23,167.14,1.53515883]
[1717225273791,2.2123,167.25,167.15,66.4912]
[1717225273972,2.2124,167.24,167.16,1.53501583]
[1717225274178,2.2122,167.25,167.16,1.53501583]
[1717225275497,2.2122,167.25,167.16,0.34]
[1717225275698,2.2124,167.24,167.16,0.34]
[1717225277198,2.2124,167.24,167.16,0.17]
[1717225279605,2.2125,167.23,167.15,6.4912]
[1717225282502,2.2124,167.24,167.15,6.4912]
[1717225285104,2.2122,167.25,167.15,6.4912]
[1717225288177,2.2126,167.23,167.12,60.0]
[1717225288385,2.2126,167.22,167.13,20.0]
[1717225289384,2.2127,167.21,167.11,15.44421078]
[1717225289596,2.2129,167.2,167.12,20.0]
[1717225290301,2.2128,167.21,167.12,20.0]
[1717225293305,2.2126,167.22,167.12,20.0]
[1717225296212,2.2128,167.21,167.12,20.0]
[1717225297007,2.2128,167.21,167.11,6.4697]
[1717225297210,2.2129,167.2,167.11,6.4697]
[1717225297400,2.2129,167.2,167.1,9.14451078]
[1717225297594,2.2129,167.2,167.11,20.0]
[1717225299006,2.2129,167.2,167.1,9.14451078]
[1717225299311,2.213,167.19,167.1,9.14451078]
[1717225300412,2.213,167.19,167.1,0.17]
[1717225300611,2.213,167.19,167.1,8.97941937]
[1717225305015,2.2129,167.2,167.1,8.97941937]
[1717225306006,2.213,167.19,167.1,8.97941937]
[1717225309413,2.2131,167.18,167.1,8.97941937]
[1717225316126,2.213,167.2,167.1,8.97941937]
[1717225316310,2.2135,167.22,167.1,8.97941937]
[1717225316510,0.17,167.21,167.1,8.97941937]
[1717225317229,2.213,167.19,167.1,8.97941937]
[1717225321109,2.2129,167.2,167.1,8.97941937]
[1717225322532,2.2129,167.2,167.1,68.97941937]
[1717225322739,2.2129,167.2,167.11,0.34]
[1717225323036,2.2128,167.21,167.12,60.0]
[1717225323234,2.2128,167.21,167.13,0.17]
[1717225323417,2.2135,167.22,167.1,8.97941937]
[1717225323610,2.213,167.19,167.1,8.97941937]
[1717225323814,2.2132,167.18,167.1,8.97941937]
[1717225324734,2.213,167.19,167.11,0.17]
[1717225325441,2.213,167.19,167.1,8.97941937]
[1717225325738,2.2131,167.18,167.1,8.97941937]
[1717225326134,2.2131,167.18,167.1,68.97941937]
[1717225326322,2.2131,167.18,167.11,0.17]
[1717225326521,2.213,167.19,167.11,0.17]
[1717225327238,2.2131,167.18,167.11,0.17]
[1717225330551,2.213,167.19,167.11,0.17]
[1717225333444,2.2132,167.18,167.11,0.17]
[1717225333653,2.2132,167.18,167.1,8.97941937]
[1717225334649,2.2132,167.18,167.1,8.97734107]
[1717225334830,2.2132,167.18,167.11,0.17]
[1717225335637,2.213,167.19,167.11,0.17]
[1717225336170,2.2132,167.18,167.1,8.97734107]
[1717225339033,2.2133,167.17,167.1,8.97734107]
[1717225339752,2.2131,167.19,167.1,8.97734107]
[1717225340053,2.2132,167.18,167.1,8.97734107]
[1717225343054,2.2135,167.17,167.1,8.97734107]
[1717225343260,2.2135,167.16,167.09,8.97734107]
[1717225344960,2.2136,167.15,167.09,8.97734107]
[1717225345969,2.2134,167.16,167.09,8.97734107]
[1717225346261,2.2136,167.15,167.09,8.97734107]
[1717225348452,2.2138,167.13,167.09,8.97734107]
[1717225348667,4.4272,167.14,167.09,8.97734107]
[1717225349681,2.2135,167.14,167.09,8.97734107]
[1717225356294,4.4272,167.14,167.09,8.97734107]
[1717225357286,2.2135,167.13,167.09,8.97734107]
[1717225357459,2.2137,167.14,167.09,8.97734107]
[1717225357657,2.2135,167.13,167.08,8.97734107]
[1717225357858,13.84416157,167.15,167.08,8.97734107]
[1717225358159,2.2135,167.12,167.08,8.97734107]
[1717225358357,2.2135,167.11,167.08,8.97734107]
[1717225358958,2.2135,167.11,167.08,8.97728928]
[1717225359792,2.2135,167.11,167.03,5.986]
[1717225359962,2.2135,167.11,167.08,8.97735442]
[1717225361559,2.214,167.12,167.08,8.97735442]
[1717225362477,2.2135,167.15,167.08,8.97735442]
[1717225362671,2.2138,167.13,167.08,8.97735442]
[1717225362858,4.4273,167.13,167.08,8.97735442]
[1717225365984,2.2139,167.12,167.08,8.97735442]
[1717225366862,2.2138,167.13,167.08,8.97735442]
[1717225368983,2.2138,167.13,167.08,8.97729043]
[1717225371293,2.2136,167.15,167.08,8.97729043]
[1717225371590,2.2137,167.14,167.09,8.97729043]
[1717225378303,2.2137,167.14,167.09,8.47171901]
[1717225379290,2.2137,167.14,167.09,14.75501901]
[1717225383296,2.2138,167.13,167.09,14.75501901]
[1717225383603,2.2138,167.13,167.09,8.47171901]
[1717225383981,2.2139,167.12,167.09,8.47171901]
[1717225384990,2.2141,167.11,167.09,8.47171901]
[1717225385597,2.2142,167.1,167.08,8.47171901]
[1717225386119,2.2141,167.11,167.08,8.47171901]
[1717225388789,2.214,167.12,167.08,8.47171901]
[1717225391802,2.2138,167.13,167.08,8.47171901]
[1717225392210,2.2138,167.13,167.09,8.47171901]
[1717225392784,2.2138,167.13,167.09,8.98045612]
[1717225398694,4.4262,167.19,167.1,15.6396]
[1717225398901,2.2134,167.16,167.1,24.62005612]
[1717225399489,2.2134,167.16,167.1,15.6396]
[1717225399703,2.2133,167.17,167.1,24.61820725]
[1717225403714,2.2134,167.16,167.1,15.6396]
[1717225406604,2.2133,167.17,167.1,15.6396]
[1717225412014,8.8511,167.22,167.1,15.6396]
[1717225412220,4.4258,167.2,167.1,15.6396]
[1717225412407,2.2133,167.17,167.1,15.6396]
[1717225414625,2.2134,167.16,167.1,15.6396]
[1717225415617,2.2133,167.17,167.1,15.6396]
[1717225419428,2.2133,167.17,167.1,16.83667005]
[1717225419598,2.2133,167.17,167.11,1.19699841]
[1717225419798,2.2133,167.17,167.1,16.83659841]
[1717225420007,2.2133,167.17,167.11,1.19692678]
[1717225420325,2.2133,167.17,167.1,15.6396]
[1717225421101,2.2133,167.17,167.1,16.83603402]
[1717225421535,2.2133,167.17,167.1,15.6396]
[1717225425328,2.2133,167.17,167.1,24.61819844]
[1717225426320,2.2133,167.17,167.1,15.6396]
[1717225427416,2.2132,167.18,167.1,15.6396]
[1717225427823,11.2328,167.23,167.1,15.6396]
[1717225428032,11.2328,167.23,167.11,0.17]
[1717225428833,2.2131,167.19,167.11,0.17]
[1717225430543,2.2132,167.18,167.11,0.17]
[1717225433041,2.2132,167.18,167.12,6.5777]
[1717225433944,2.2133,167.17,167.12,6.5777]
[1717225434645,2.2133,167.17,167.11,6.7477]
[1717225440140,2.2133,167.17,167.11,6.5777]
[1717225440355,2.58706157,167.2,167.09,8.97859844]
[1717225440640,2.2139,167.13,167.09,8.97859844]
[1717225440863,6.6404,167.16,167.09,8.97859844]
[1717225441036,0.17,167.15,167.09,8.97859844]
[1717225441646,4.5972,167.15,167.09,8.97859844]
[1717225441851,2.2142,167.1,167.09,8.97859844]
[1717225442245,2.214,167.12,167.09,8.97859844]
[1717225445248,0.17,167.15,167.09,8.97859844]
[1717225445249,2.2138,167.13,167.09,8.97859844]
[1717225445450,4.5968,167.17,167.09,8.97859844]
[1717225445451,2.2138,167.14,167.1,6.4223]
[1717225447444,2.2138,167.14,167.09,8.98459289]
[1717225447644,2.2138,167.14,167.11,6.6221]
[1717225449559,2.2138,167.13,167.11,6.6221]
[1717225453661,2.2139,167.12,167.09,8.98459289]
[1717225453865,8.8526,167.19,167.09,8.98459289]
[1717225454069,2.2141,167.11,167.09,8.98459289]
[1717225456254,2.2141,167.11,167.08,8.98459289]
[1717225456886,2.214,167.12,167.08,8.98459289]
[1717225459264,2.214,167.12,167.08,15.60669289]
[1717225459465,2.214,167.12,167.08,15.60694762]
[1717225460795,2.214,167.12,167.09,8.98484762]
[1717225463783,2.214,167.12,167.08,15.60694762]
[1717225464370,2.214,167.12,167.09,8.98484762]
[1717225470379,2.2138,167.13,167.09,8.98484762]
[1717225470576,2.2138,167.13,167.09,15.38924762]
[1717225473402,2.2137,167.14,167.09,8.98484762]
[1717225473628,0.17,167.18,167.11,6.4044]
[1717225474421,2.2136,167.15,167.11,6.4044]
[1717225474704,2.2137,167.14,167.11,6.4044]
[1717225476193,2.2135,167.16,167.1,21.5244]
[1717225476401,4.4262,167.19,167.1,21.5244]
[1717225476695,2.2135,167.16,167.11,17.512996]
[1717225476899,2.2135,167.16,167.12,6.4044]
[1717225477204,2.2135,167.16,167.13,2.39270963]
[1717225487615,2.2135,167.16,167.12,6.4044]
[1717225493191,2.2133,167.17,167.11,6.0455]
[1717225495113,2.2134,167.16,167.11,6.0455]
[1717225500919,2.58706157,167.22,167.1,8.98336878]
[1717225501096,2.2138,167.13,167.09,8.98336878]
[1717225501422,2.2141,167.11,167.09,8.98336878]
[1717225502031,2.2139,167.12,167.09,8.98336878]
[1717225502732,7.01416157,167.15,167.09,8.98336878]
[1717225503118,4.4271,167.15,167.09,8.98336878]
[1717225503433,2.58706157,167.14,167.09,8.98336878]
[1717225503630,2.2142,167.11,167.09,8.98336878]
[1717225504313,2.2142,167.1,167.08,8.98336878]
[1717225510115,2.2141,167.11,167.08,8.98336878]
[1717225510441,2.2138,167.13,167.08,8.98336878]
[1717225510737,2.2138,167.13,167.09,15.64666878]
[1717225510938,11.066,167.18,167.09,15.64666878]
[1717225511436,2.2137,167.14,167.09,15.64666878]
[1717225512234,2.2137,167.14,167.1,6.6633]
[1717225513940,2.2136,167.15,167.1,6.6633]
[1717225514236,2.2136,167.15,167.09,8.98378796]
[1717225514434,2.2136,167.15,167.11,6.6633]
[1717225517339,2.2136,167.15,167.09,10.77571945]
[1717225517642,2.2136,167.15,167.1,6.8333]
[1717225518343,2.2134,167.16,167.1,6.8333]
[1717225519540,2.2134,167.16,167.11,1.79227575]
[1717225519746,2.2134,167.16,167.12,6.6633]
[1717225519923,2.2134,167.16,167.13,1.79206128]
[1717225521654,2.2134,167.16,167.12,6.6633]
[1717225521947,2.2133,167.17,167.12,6.6633]
[1717225522324,2.2133,167.17,167.13,1.80372486]
[1717225523349,2.2133,167.17,167.13,6.2421]
[1717225526135,2.2132,167.18,167.13,6.2421]
[1717225531449,2.213,167.19,167.13,6.2421]
[1717225533352,2.2129,167.2,167.14,0.17]
[1717225537856,2.2129,167.2,167.14,0.34]
[1717225538668,2.2128,167.21,167.14,0.34]
[1717225539156,2.2126,167.23,167.16,15.0833]
[1717225539464,2.2126,167.22,167.16,15.0833]
[1717225539761,2.2127,167.21,167.15,21.3254]
[1717225540060,2.2126,167.22,167.18,6.2421]
[1717225540441,2.2126,167.22,167.19,6.2421]
[1717225546374,2.2126,167.22,167.16,0.17]
[1717225546768,2.2126,167.22,167.15,6.0974]
[1717225549981,2.2126,167.22,167.15,8.13002329]
[1717225550859,2.2126,167.22,167.16,0.17]
[1717225555187,2.2125,167.23,167.16,0.17]
[1717225559780,2.2126,167.22,167.16,0.17]
[1717225563081,2.2123,167.25,167.18,60.0]
[1717225563391,2.2123,167.25,167.19,5.84]
[1717225566302,7.7123,167.25,167.19,5.84]
[1717225568582,7.7123,167.25,167.19,0.34]
[1717225569507,5.5,167.24,167.19,0.34]
[1717225570610,5.5,167.24,167.19,0.17]
[1717225570799,5.5,167.21,167.15,113.87]
[1717225570992,5.5,167.21,167.15,119.37]
[1717225572176,5.5,167.21,167.15,125.356]
[1717225572376,5.5,167.21,167.16,0.17]
[1717225572884,5.5,167.21,167.16,0.34]
[1717225573485,5.5,167.22,167.16,5.84]
[1717225576300,2.2122,167.25,167.17,60.0]
[1717225576490,5.5,167.23,167.18,0.34]
[1717225584025,5.5,167.22,167.18,0.34]
[1717225585019,5.5,167.22,167.17,0.34]
[1717225588917,5.5,167.21,167.16,0.34]
[1717225589220,5.5,167.21,167.16,0.17]
[1717225590407,5.5,167.21,167.16,0.34]
[1717225592618,2.2126,167.23,167.16,0.34]
[1717225592619,5.5,167.22,167.16,0.34]
[1717225593011,5.5,167.22,167.16,5.84]
[1717225594107,5.5,167.23,167.17,60.0]
[1717225594430,5.5,167.23,167.18,0.17]
[1717225595629,2.2124,167.24,167.18,0.17]
[1717225595813,5.5,167.23,167.18,0.17]
[1717225597028,5.5,167.22,167.18,0.17]
[1717225601131,5.5,167.22,167.18,0.00416276]
[1717225601336,5.5,167.22,167.17,60.0]
[1717225607025,2.2124,167.24,167.17,60.0]
[1717225607424,5.5,167.23,167.17,60.0]
[1717225617035,5.5,167.22,167.17,60.0]
[1717225617335,5.5,167.22,167.17,66.2907]
[1717225621123,5.5,167.22,167.17,6.2907]
[1717225621923,2.2126,167.22,167.16,0.34]
[1717225622143,5.5,167.21,167.16,0.34]
[1717225624828,5.5,167.2,167.16,0.34]
[1717225625550,2.2125,167.23,167.16,0.34]
[1717225625551,5.5,167.21,167.17,6.2645]
[1717225629143,5.5,167.2,167.17,6.2645]
[1717225632455,5.5,167.21,167.17,6.2645]
[1717225634560,5.5,167.21,167.16,0.34]
[1717225634857,5.5,167.21,167.16,6.6045]
[1717225644274,2.2125,167.23,167.16,6.6045]
[1717225644571,5.5,167.21,167.16,6.6045]
[1717225645559,2.2125,167.23,167.16,6.6045]
[1717225645874,5.5,167.21,167.16,6.6045]
[1717225648577,5.5,167.21,167.17,6.5261]
[1717225653177,2.2125,167.23,167.17,6.5261]
[1717225653178,5.5,167.22,167.17,6.5261]
[1717225653370,5.5,167.22,167.16,6.8661]
[1717225655497,5.5,167.21,167.16,6.8661]
[1717225655676,5.5,167.21,167.17,6.5261]
[1717225655873,2.2125,167.23,167.16,16.0]
[1717225656176,5.5,167.21,167.16,16.0]
[1717225656576,5.5,167.21,167.17,6.5261]
[1717225657468,5.5,167.21,167.18,6.5261]
[1717225658985,2.2125,167.23,167.17,75.66]
[1717225659285,5.5,167.22,167.18,6.5261]
[1717225668098,5.5,167.22,167.17,60.0]
[1717225669006,5.5,167.21,167.17,60.0]
[1717225670005,5.5,167.2,167.16,0.34]
[1717225684703,6.6374,167.27,167.16,0.34]
[1717225684704,2.2135,167.27,167.16,0.34]
[1717225684902,2.2123,167.25,167.16,0.34]
[1717225685109,5.5,167.22,167.16,0.34]
[1717225686012,5.5,167.22,167.17,60.0]
[1717225690024,5.5,167.21,167.17,60.0]
[1717225690218,2.2124,167.24,167.17,60.0]
[1717225690419,5.5,167.21,167.17,60.0]
[1717225691329,2.2125,167.23,167.17,60.0]
[1717225691506,5.5,167.21,167.17,60.0]
[1717225693318,5.5,167.2,167.16,0.34]
[1717225693514,5.5,167.18,167.13,6.5634]
[1717225693721,8.8488,167.26,167.13,6.5634]
[1717225693722,5.5,167.17,167.13,6.5634]
[1717225694522,5.5,167.16,167.11,104.89024573]
[1717225694725,5.5,167.16,167.11,95.91]
[1717225695606,5.5,167.15,167.1,8.98024573]
[1717225696931,5.5,167.15,167.11,0.34]
[1717225697428,5.5,167.16,167.11,0.34]
[1717225699812,5.5,167.16,167.11,1.05008988]
[1717225702918,5.5,167.16,167.11,0.34]
[1717225705446,5.5,167.16,167.11,2.73256987]
[1717225706549,5.5,167.2,167.14,60.0]
[1717225706550,2.2129,167.2,167.14,60.0]
[1717225706723,2.2129,167.2,167.15,2.73203729]
[1717225706724,5.5,167.19,167.15,2.73203729]
[1717225706924,5.5,167.18,167.15,0.34]
[1717225715954,5.5,167.17,167.15,0.34]
[1717225719143,5.5,167.16,167.11,8.9807928]
[1717225719344,5.5,167.14,167.1,8.9807928]
[1717225724330,2.213,167.19,167.11,0.17]
[1717225724331,5.5,167.15,167.11,0.17]
[1717225724527,5.5,167.15,167.11,0.34]
[1717225724855,5.5,167.16,167.11,0.34]
[1717225725672,5.5,167.16,167.11,1.53531402]
[1717225725837,5.5,167.16,167.11,0.34]
[1717225726039,5.5,167.15,167.11,0.34]
[1717225726743,5.5,167.14,167.11,0.34]
[1717225729743,5.5,167.14,167.1,60.0]
[1717225730062,5.5,167.15,167.1,60.0]
[1717225730236,5.5,167.15,167.11,0.34]
[1717225730969,5.5,167.16,167.11,0.34]
[1717225731450,5.5,167.16,167.12,60.0]
[1717225731643,5.5,167.16,167.13,0.17]
[1717225733540,5.5,167.17,167.13,0.17]
[1717225736558,2.213,167.19,167.13,0.17]
[1717225736764,5.5,167.17,167.13,0.34]
[1717225736952,5.5,167.17,167.13,6.4203]
[1717225738566,2.213,167.19,167.13,6.4203]
[1717225738860,5.5,167.17,167.13,6.4203]
[1717225741167,5.5,167.16,167.13,6.4203]
[1717225743178,5.5,167.17,167.13,6.4203]
[1717225749590,5.5,167.17,167.14,6.2791]
[1717225750365,5.5,167.16,167.13,0.34]
[1717225752774,5.5,167.16,167.1,111.17217124]
[1717225753275,5.5,167.16,167.11,6.6191]
[1717225755170,5.5,167.15,167.11,6.6191]
[1717225755366,5.5,167.14,167.11,0.34]
[1717225756190,2.2134,167.16,167.11,0.34]
[1717225756191,5.5,167.13,167.11,0.34]
[1717225760609,2.2137,167.14,167.07,21.24817124]
[1717225760791,5.5,167.11,167.08,0.34]
[1717225761287,5.5,167.1,167.08,0.34]
[1717225761774,5.5,167.1,167.08,0.17]
[1717225762189,5.5,167.09,167.05,8.98307124]
[1717225762390,5.5,167.08,167.03,435.79307124]
[1717225762573,5.5,167.08,167.03,426.81]
[1717225763686,5.5,167.08,167.04,0.17]
[1717225763885,2.2142,167.1,167.03,390.9]
[1717225764196,5.5,167.07,167.03,390.9]
[1717225764492,2.2142,167.1,167.03,390.9]
[1717225764698,5.5,167.06,167.03,390.9]
[1717225765504,2.2141,167.11,167.03,390.9]
[1717225765505,5.5,167.07,167.03,390.9]
[1717225766207,5.5,167.07,167.04,0.17]
[1717225766375,5.5,167.07,167.04,0.34]
[1717225766577,5.5,167.09,167.04,0.34]
[1717225768169,5.5,167.09,167.05,6.2208]
[1717225768371,5.5,167.09,167.06,0.34]
[1717225772600,5.5,167.09,167.06,0.9371674]
[1717225772900,2.2141,167.12,167.06,0.9371674]
[1717225773200,11.2571,167.19,167.08,6.2208]
[1717225773201,5.5,167.11,167.08,6.2208]
[1717225773405,5.5,167.11,167.09,0.34]
[1717225773908,5.5,167.1,167.09,0.34]
[1717225774389,5.5,167.1,167.05,129.2536]
[1717225774390,5.5,167.1,167.05,95.91]
[1717225774592,5.5,167.08,167.05,35.91]
[1717225774791,5.5,167.08,167.06,0.34]
[1717225775115,2.2139,167.12,167.06,0.34]
[1717225775282,5.5,167.09,167.07,0.17]
[1717225775482,5.5,167.09,167.05,0.34]
[1717225776903,5.5,167.1,167.05,0.34]
[1717225777094,5.5,167.09,167.05,0.34]
[1717225777296,5.5,167.09,167.06,0.17]
[1717225777491,5.5,167.09,167.04,0.34]
[1717225777981,5.5,167.09,167.04,6.5608]
[1717225778611,5.5,167.09,167.05,6.2208]
[1717225778793,5.5,167.09,167.06,0.34]
[1717225780611,5.5,167.08,167.06,0.34]
[1717225780810,7.714,167.12,167.06,0.34]
[1717225780998,5.5,167.07,167.06,0.34]
[1717225781612,5.5,167.08,167.06,0.34]
[1717225784608,5.5,167.07,167.06,0.34]
[1717225792822,7.714,167.12,167.06,0.34]
[1717225793016,5.5,167.08,167.06,0.34]
[1717225794723,2.214,167.12,167.06,0.34]
[1717225794931,5.5,167.08,167.06,0.34]
[1717225795824,2.214,167.12,167.06,0.34]
[1717225796206,5.5,167.08,167.06,0.34]
[1717225797908,2.214,167.12,167.06,0.34]
[1717225798204,5.5,167.08,167.06,0.34]
[1717225800805,5.5,167.09,167.06,0.34]
[1717225801123,5.5,167.1,167.03,6.5043]
[1717225801323,5.5,167.06,167.04,0.17]
[1717225801832,5.5,167.05,167.04,0.17]
[1717225803135,5.5,167.06,167.04,0.17]
[1717225808049,2.2142,167.1,167.04,0.17]
[1717225808228,2.2141,167.11,167.04,0.17]
[1717225808629,2.2141,167.11,167.03,0.17]
[1717225808630,5.5,167.08,167.03,6.6195]
[1717225810353,2.2141,167.11,167.03,6.6195]
[1717225810654,5.5,167.08,167.04,6.2795]
[1717225810953,5.5,167.08,167.05,0.34]
[1717225813933,5.5,167.08,167.05,1.24564522]
[1717225815343,5.5,167.08,167.05,1.77064589]
[1717225815538,5.5,167.08,167.05,0.34]
[1717225815743,5.5,167.07,167.05,0.34]
[1717225815937,22.0,167.12,167.01,111.2936]
[1717225815938,2.2143,167.09,167.01,60.28028847]
[1717225816263,5.5,167.05,167.02,0.34]
[1717225817968,5.5,167.05,167.02,6.6195]
[1717225818161,5.5,167.06,167.02,6.6195]
[1717225818372,5.5,167.06,167.03,0.72258623]
[1717225818659,5.5,167.06,167.04,0.17]
[1717225818847,5.5,167.06,167.02,6.6195]
[1717225819048,5.5,167.05,167.02,6.6195]
[1717225819663,5.5,167.06,167.02,6.6195]
[1717225820041,5.5,167.07,167.03,6.2795]
[1717225820363,5.5,167.07,167.04,0.34]
[1717225820672,5.5,167.08,167.04,0.34]
[1717225820865,5.5,167.08,167.04,6.6195]
[1717225821082,5.5,167.07,167.04,6.6195]
[1717225829462,5.5,167.07,167.04,0.34]
[1717225829664,5.5,167.06,167.04,0.34]
[1717225830555,5.5,167.06,167.04,0.17]
[1717225837582,2.2142,167.1,167.04,0.17]
[1717225837760,5.5,167.06,167.04,0.17]
[1717225838078,2.2142,167.1,167.04,0.17]
[1717225838261,5.5,167.07,167.04,0.17]
[1717225840391,5.5,167.06,167.04,0.17]